[Event "Live Chess"]
[Site "Chess.com"]
[Date "2023.05.21"]
[Round "-"]
[White "chessfiction"]
[Black "BillythekidFellowes"]
[Result "1/2-1/2"]
[WhiteElo "2347"]
[BlackElo "2035"]
[TimeControl "300"]
[EndTime "1:11:30 PDT"]
[Termination "Game drawn - insufficient material"]

1. e4 {[%clk 0:04:59.6]} 1... d6 {[%clk 0:04:57.7]} 2. d4 {[%clk 0:04:59.5]}
2... c5 {[%clk 0:04:56.9]} 3. c3 {[%clk 0:04:57.5]} 3... cxd4 {[%clk 0:04:56.2]}
4. Nf3 {[%clk 0:04:55.1]} 4... g6 {[%clk 0:04:54.9]} 5. Qxd4 {[%clk 0:04:53]}
5... Nf6 {[%clk 0:04:52.8]} 6. e5 {[%clk 0:04:49.4]} 6... dxe5 {[%clk
0:04:45.6]} 7. Qxd8+ {[%clk 0:04:49.3]} 7... Kxd8 {[%clk 0:04:44.5]} 8. Nxe5
{[%clk 0:04:48.7]} 8... Be6 {[%clk 0:04:43.7]} 9. Bf4 {[%clk 0:04:41.1]} 9...
Bg7 {[%clk 0:04:42.5]} 10. Na3 {[%clk 0:04:39]} 10... Nbd7 {[%clk 0:04:40.5]}
11. O-O-O {[%clk 0:04:38.9]} 11... Kc8 {[%clk 0:04:39.4]} 12. Bb5 {[%clk
0:04:34.1]} 12... Nxe5 {[%clk 0:04:35.6]} 13. Bxe5 {[%clk 0:04:34]} 13... a6
{[%clk 0:04:35]} 14. Bc4 {[%clk 0:04:19.2]} 14... b5 {[%clk 0:04:24.2]} 15.
Bxe6+ {[%clk 0:04:17.1]} 15... fxe6 {[%clk 0:04:24.1]} 16. Rhe1 {[%clk
0:04:15.9]} 16... Ra7 {[%clk 0:04:12.1]} 17. Nc2 {[%clk 0:04:14.8]} 17... Rd7
{[%clk 0:04:10.6]} 18. Nb4 {[%clk 0:04:12.9]} 18... a5 {[%clk 0:04:08.8]} 19.
Nc6 {[%clk 0:04:11.4]} 19... a4 {[%clk 0:04:07.5]} 20. Nd4 {[%clk 0:04:03]}
20... Bh6+ {[%clk 0:03:57.7]} 21. f4 {[%clk 0:04:01.1]} 21... Rhd8 {[%clk
0:03:53]} 22. Kc2 {[%clk 0:03:56]} 22... Ng4 {[%clk 0:03:48.7]} 23. h3 {[%clk
0:03:42.2]} 23... Nxe5 {[%clk 0:03:41.4]} 24. Rxe5 {[%clk 0:03:42.1]} 24... Bxf4
{[%clk 0:03:39]} 25. Rxb5 {[%clk 0:03:38]} 25... e5 {[%clk 0:03:38.4]} 26. Rc5+
{[%clk 0:03:33.5]} 26... Kb7 {[%clk 0:03:34.9]} 27. Rf1 {[%clk 0:03:27.8]} 27...
g5 {[%clk 0:03:14.6]} 28. Nf3 {[%clk 0:03:19.6]} 28... e4 {[%clk 0:02:51]} 29.
Nd4 {[%clk 0:03:05.8]} 29... e5 {[%clk 0:02:49.8]} 30. Rxf4 {[%clk 0:02:50.5]}
30... gxf4 {[%clk 0:02:46.3]} 31. Rxe5 {[%clk 0:02:49.4]} 31... e3 {[%clk
0:02:40.6]} 32. Re4 {[%clk 0:02:41.9]} 32... Rg7 {[%clk 0:02:37.6]} 33. Kd3
{[%clk 0:02:25]} 33... Rxg2 {[%clk 0:02:35]} 34. Rxf4 {[%clk 0:02:20.5]} 34...
Rxb2 {[%clk 0:02:15.4]} 35. Kxe3 {[%clk 0:02:14.3]} 35... Rxa2 {[%clk
0:02:14.3]} 36. Rf7+ {[%clk 0:02:11.6]} 36... Kb6 {[%clk 0:02:12]} 37. Rxh7
{[%clk 0:02:10.6]} 37... a3 {[%clk 0:02:09.9]} 38. Rh6+ {[%clk 0:02:04.7]} 38...
Ka5 {[%clk 0:02:06.2]} 39. Nc6+ {[%clk 0:02:03.5]} 39... Kb5 {[%clk 0:02:02.1]}
40. Nxd8 {[%clk 0:02:02.6]} 40... Rc2 {[%clk 0:01:52.7]} 41. Rh5+ {[%clk
0:01:57.8]} 41... Ka4 {[%clk 0:01:50.1]} 42. Rh7 {[%clk 0:01:17.1]} 42... a2
{[%clk 0:01:46.1]} 43. Ra7+ {[%clk 0:01:14.4]} 43... Kb3 {[%clk 0:01:45.4]} 44.
Ne6 {[%clk 0:01:07.1]} 44... Rxc3+ {[%clk 0:01:43.1]} 45. Kd2 {[%clk 0:01:04]}
45... Rxh3 {[%clk 0:01:36.2]} 46. Nd4+ {[%clk 0:01:02.8]} 46... Kc4 {[%clk
0:01:23]} 47. Ra4+ {[%clk 0:01:00.7]} 47... Kd5 {[%clk 0:01:20.2]} 48. Ne2
{[%clk 0:00:57]} 48... a1=Q {[%clk 0:01:11.1]} 49. Rxa1 {[%clk 0:00:52.9]} 49...
Rh8 {[%clk 0:01:10.2]} 50. Ra5+ {[%clk 0:00:50.2]} 50... Kc4 {[%clk 0:01:09.1]}
51. Ra4+ {[%clk 0:00:48.5]} 51... Kd5 {[%clk 0:01:06.8]} 52. Nc3+ {[%clk
0:00:47]} 52... Kc5 {[%clk 0:01:05.5]} 53. Re4 {[%clk 0:00:42.6]} 53... Rh2+
{[%clk 0:01:03.1]} 54. Ne2 {[%clk 0:00:41.7]} 54... Kd5 {[%clk 0:01:01.7]} 55.
Rg4 {[%clk 0:00:40.9]} 55... Ke5 {[%clk 0:01:00.7]} 56. Ke3 {[%clk 0:00:39.6]}
56... Rh3+ {[%clk 0:00:59.5]} 57. Ng3 {[%clk 0:00:38.6]} 57... Kd5 {[%clk
0:00:59]} 58. Kf4 {[%clk 0:00:37]} 58... Rh8 {[%clk 0:00:58]} 59. Rg5+ {[%clk
0:00:36.1]} 59... Kd4 {[%clk 0:00:57]} 60. Nf5+ {[%clk 0:00:35.5]} 60... Kd3
{[%clk 0:00:56]} 61. Rg7 {[%clk 0:00:35.4]} 61... Ra8 {[%clk 0:00:54.1]} 62.
Rd7+ {[%clk 0:00:34.3]} 62... Kc4 {[%clk 0:00:53.2]} 63. Ne3+ {[%clk 0:00:32.9]}
63... Kc5 {[%clk 0:00:51.8]} 64. Ke4 {[%clk 0:00:31]} 64... Ra4+ {[%clk
0:00:50]} 65. Ke5 {[%clk 0:00:29.7]} 65... Ra3 {[%clk 0:00:49]} 66. Rc7+ {[%clk
0:00:28.9]} 66... Kb6 {[%clk 0:00:47.3]} 67. Nd5+ {[%clk 0:00:28.8]} 67... Kb5
{[%clk 0:00:46]} 68. Kd6 {[%clk 0:00:27.9]} 68... Ra6+ {[%clk 0:00:44.8]} 69.
Ke5 {[%clk 0:00:27.4]} 69... Ra3 {[%clk 0:00:43.6]} 70. Rb7+ {[%clk 0:00:26.6]}
70... Kc4 {[%clk 0:00:37.8]} 71. Rc7+ {[%clk 0:00:25.1]} 71... Kd3 {[%clk
0:00:35.9]} 72. Rd7 {[%clk 0:00:23.2]} 72... Ra5 {[%clk 0:00:32.8]} 73. Kd6
{[%clk 0:00:22.5]} 73... Kd4 {[%clk 0:00:30.8]} 74. Nb6 {[%clk 0:00:20.8]} 74...
Ra6 {[%clk 0:00:27.1]} 75. Kc6+ {[%clk 0:00:20.7]} 75... Ke5 {[%clk 0:00:24.8]}
76. Rg7 {[%clk 0:00:20.6]} 76... Ra1 {[%clk 0:00:23.5]} 77. Rg5+ {[%clk
0:00:20.1]} 77... Kf4 {[%clk 0:00:22.7]} 78. Rg2 {[%clk 0:00:20]} 78... Rc1+
{[%clk 0:00:21.5]} 79. Kb7 {[%clk 0:00:19.5]} 79... Kf3 {[%clk 0:00:20.7]} 80.
Rg7 {[%clk 0:00:18.8]} 80... Ke4 {[%clk 0:00:18.9]} 81. Re7+ {[%clk 0:00:17.9]}
81... Kf5 {[%clk 0:00:17.9]} 82. Rd7 {[%clk 0:00:17.8]} 82... Ke6 {[%clk
0:00:17.1]} 83. Rd2 {[%clk 0:00:17.3]} 83... Rf1 {[%clk 0:00:16.8]} 84. Re2+
{[%clk 0:00:16.4]} 84... Kf5 {[%clk 0:00:16.4]} 85. Rc2 {[%clk 0:00:16.3]} 85...
Ke4 {[%clk 0:00:15.7]} 86. Rc5 {[%clk 0:00:15.5]} 86... Kd3 {[%clk 0:00:15.3]}
87. Kc6 {[%clk 0:00:15]} 87... Rf6+ {[%clk 0:00:14.2]} 88. Kb5 {[%clk
0:00:14.4]} 88... Rf4 {[%clk 0:00:13.3]} 89. Nd5 {[%clk 0:00:13.7]} 89... Rd4
{[%clk 0:00:13.2]} 90. Nb4+ {[%clk 0:00:12.8]} 90... Ke3 {[%clk 0:00:11.7]} 91.
Rc3+ {[%clk 0:00:12.2]} 91... Ke4 {[%clk 0:00:11.6]} 92. Rc5 {[%clk 0:00:11.5]}
92... Kf4 {[%clk 0:00:09.8]} 93. Nc6 {[%clk 0:00:10.4]} 93... Re4 {[%clk
0:00:09.2]} 94. Rd5 {[%clk 0:00:09.8]} 94... Kg4 {[%clk 0:00:08.4]} 95. Kc5
{[%clk 0:00:09.3]} 95... Rf4 {[%clk 0:00:07.8]} 96. Nd4 {[%clk 0:00:09.2]} 96...
Re4 {[%clk 0:00:06.8]} 97. Ne6 {[%clk 0:00:08.7]} 97... Rxe6 {[%clk 0:00:06]}
98. Rd4+ {[%clk 0:00:08.6]} 98... Kg5 {[%clk 0:00:05.3]} 99. Rd5+ {[%clk
0:00:08.5]} 99... Kg6 {[%clk 0:00:04.9]} 100. Rd4 {[%clk 0:00:08.4]} 100... Rf6
{[%clk 0:00:04.8]} 101. Kc4 {[%clk 0:00:08.3]} 101... Rf5 {[%clk 0:00:04.2]}
102. Rd5 {[%clk 0:00:08.2]} 102... Kg5 {[%clk 0:00:04.1]} 103. Rd4 {[%clk
0:00:07.6]} 103... Rf4 {[%clk 0:00:03.7]} 104. Kd5 {[%clk 0:00:06.4]} 104...
Rxd4+ {[%clk 0:00:03.6]} 105. Kxd4 {[%clk 0:00:06.3]} 1/2-1/2

[Event "Live Chess"]
[Site "Chess.com"]
[Date "2023.05.21"]
[Round "-"]
[White "WelshTiger"]
[Black "RamsayFlayer"]
[Result "1-0"]
[WhiteElo "2362"]
[BlackElo "1968"]
[TimeControl "300"]
[EndTime "1:11:31 PDT"]
[Termination "WelshTiger won by checkmate"]

1. e4 {[%clk 0:04:58.9]} 1... e5 {[%clk 0:04:58.6]} 2. Nf3 {[%clk 0:04:57.7]}
2... Nc6 {[%clk 0:04:57.5]} 3. d4 {[%clk 0:04:56]} 3... exd4 {[%clk 0:04:56.3]}
4. Bc4 {[%clk 0:04:55.2]} 4... Bb4+ {[%clk 0:04:53.8]} 5. c3 {[%clk 0:04:52.3]}
5... dxc3 {[%clk 0:04:53.4]} 6. Nxc3 {[%clk 0:04:51.6]} 6... Nf6 {[%clk
0:04:48.1]} 7. O-O {[%clk 0:04:50.7]} 7... O-O {[%clk 0:04:42.6]} 8. e5 {[%clk
0:04:47]} 8... d5 {[%clk 0:04:28.9]} 9. Nxd5 {[%clk 0:04:33.9]} 9... Nxd5 {[%clk
0:04:26.6]} 10. Bxd5 {[%clk 0:04:33.8]} 10... Ne7 {[%clk 0:04:22.5]} 11. Bxf7+
{[%clk 0:04:19.2]} 11... Kxf7 {[%clk 0:04:16.9]} 12. Qb3+ {[%clk 0:04:17.3]}
12... Nd5 {[%clk 0:04:06.1]} 13. Rd1 {[%clk 0:04:15.1]} 13... Be6 {[%clk
0:04:01.2]} 14. Ng5+ {[%clk 0:04:10.1]} 14... Ke7 {[%clk 0:03:59.2]} 15. Nxe6
{[%clk 0:04:00.9]} 15... Kxe6 {[%clk 0:03:58.1]} 16. f4 {[%clk 0:03:40.1]} 16...
c6 {[%clk 0:03:38.6]} 17. Qh3+ {[%clk 0:03:36.6]} 17... Kf7 {[%clk 0:03:19.5]}
18. Qxh7 {[%clk 0:03:35.4]} 18... Qb6+ {[%clk 0:03:10.5]} 19. Kh1 {[%clk
0:03:33.6]} 19... Rh8 {[%clk 0:02:54.4]} 20. Qf5+ {[%clk 0:03:31]} 20... Kg8
{[%clk 0:02:36.5]} 21. Qe6+ {[%clk 0:03:27.9]} 21... Kf8 {[%clk 0:02:33.9]} 22.
Qf5+ {[%clk 0:03:13.9]} 22... Kg8 {[%clk 0:02:32.3]} 23. a3 {[%clk 0:03:02.7]}
23... Be7 {[%clk 0:02:14.8]} 24. Qe6+ {[%clk 0:02:58.3]} 24... Kf8 {[%clk
0:02:12.7]} 25. f5 {[%clk 0:02:50.1]} 25... Qf2 {[%clk 0:01:52.1]} 26. Bd2
{[%clk 0:02:35.9]} 26... Qg3 {[%clk 0:01:44.8]} 27. h3 {[%clk 0:02:34.9]} 27...
Nf4 {[%clk 0:00:51.8]} 28. Bxf4 {[%clk 0:02:31.6]} 28... Qxf4 {[%clk 0:00:51]}
29. f6 {[%clk 0:02:27]} 29... gxf6 {[%clk 0:00:41.1]} 30. exf6 {[%clk
0:02:25.9]} 30... Bd8 {[%clk 0:00:35.6]} 31. Rxd8+ {[%clk 0:02:21.8]} 31... Rxd8
{[%clk 0:00:34.3]} 32. Qe7+ {[%clk 0:02:21.4]} 32... Kg8 {[%clk 0:00:33.8]} 33.
Qg7# {[%clk 0:02:20.6]} 1-0

[Event "Live Chess"]
[Site "Chess.com"]
[Date "2023.05.21"]
[Round "-"]
[White "booktrunk"]
[Black "Woodpusher500"]
[Result "1-0"]
[WhiteElo "1294"]
[BlackElo "1185"]
[TimeControl "300"]
[EndTime "1:11:40 PDT"]
[Termination "booktrunk won on time"]

1. d4 {[%clk 0:04:57.3]} 1... c5 {[%clk 0:04:57.1]} 2. dxc5 {[%clk 0:04:56.4]}
2... e6 {[%clk 0:04:54]} 3. Be3 {[%clk 0:04:53.4]} 3... Nf6 {[%clk 0:04:37.9]}
4. Nf3 {[%clk 0:04:52.1]} 4... Ng4 {[%clk 0:04:14.2]} 5. Bd4 {[%clk 0:04:50.7]}
5... Nc6 {[%clk 0:04:07.6]} 6. h3 {[%clk 0:04:47.8]} 6... Nxd4 {[%clk
0:03:53.3]} 7. Qxd4 {[%clk 0:04:46.3]} 7... Nf6 {[%clk 0:03:47.8]} 8. e3 {[%clk
0:04:42]} 8... d5 {[%clk 0:03:35.6]} 9. cxd6 {[%clk 0:04:36.3]} 9... Bxd6 {[%clk
0:03:32.1]} 10. Bb5+ {[%clk 0:04:33.8]} 10... Bd7 {[%clk 0:03:16.7]} 11. Bxd7+
{[%clk 0:04:32.4]} 11... Qxd7 {[%clk 0:03:13.7]} 12. Ne5 {[%clk 0:04:30.9]}
12... Bxe5 {[%clk 0:02:57.5]} 13. Qxe5 {[%clk 0:04:29.7]} 13... Rd8 {[%clk
0:02:49.5]} 14. O-O {[%clk 0:04:26.6]} 14... O-O {[%clk 0:02:41.3]} 15. c3
{[%clk 0:04:17.5]} 15... Qd5 {[%clk 0:02:37.6]} 16. Qxd5 {[%clk 0:04:15.7]}
16... Rxd5 {[%clk 0:02:35.7]} 17. Na3 {[%clk 0:04:14.2]} 17... Rfd8 {[%clk
0:02:29.7]} 18. Nc4 {[%clk 0:04:09.3]} 18... Ne4 {[%clk 0:02:17.8]} 19. Kh2
{[%clk 0:04:02.7]} 19... Rc8 {[%clk 0:02:12.8]} 20. Na3 {[%clk 0:03:54.1]} 20...
Rd2 {[%clk 0:02:01.3]} 21. f3 {[%clk 0:03:52.6]} 21... Nf6 {[%clk 0:01:46.1]}
22. Rab1 {[%clk 0:03:49.5]} 22... Re2 {[%clk 0:01:35.7]} 23. Kg3 {[%clk
0:03:42.1]} 23... Nh5+ {[%clk 0:01:31.2]} 24. Kg4 {[%clk 0:03:40]} 24... g6
{[%clk 0:01:21.8]} 25. Rg1 {[%clk 0:03:35.3]} 25... f5+ {[%clk 0:01:17.7]} 26.
Kg5 {[%clk 0:03:31.9]} 26... Kg7 {[%clk 0:01:09.1]} 27. g4 {[%clk 0:03:26.1]}
27... h6+ {[%clk 0:00:48.9]} 28. Kh4 {[%clk 0:03:24.4]} 28... Nf6 {[%clk
0:00:27.3]} 29. gxf5 {[%clk 0:03:18.8]} 29... exf5 {[%clk 0:00:24.2]} 30. e4
{[%clk 0:03:16.9]} 30... f4 {[%clk 0:00:18.3]} 31. e5 {[%clk 0:03:13.9]} 31...
g5+ {[%clk 0:00:14.1]} 32. Rxg5+ {[%clk 0:03:08.1]} 32... hxg5+ {[%clk
0:00:11.2]} 33. Kxg5 {[%clk 0:03:07.2]} 33... Rg2+ {[%clk 0:00:07.5]} 34. Kxf4
{[%clk 0:03:05.1]} 34... Rc7 {[%clk 0:00:02.7]} 35. exf6+ {[%clk 0:03:03.8]}
35... Kxf6 {[%clk 0:00:01]} 36. b3 {[%clk 0:02:57]} 1-0

[Event "Live Chess"]
[Site "Chess.com"]
[Date "2023.05.21"]
[Round "-"]
[White "Vitalii18a"]
[Black "matt1979"]
[Result "0-1"]
[WhiteElo "1104"]
[BlackElo "1541"]
[TimeControl "300"]
[EndTime "1:11:42 PDT"]
[Termination "matt1979 won by checkmate"]

1. e4 {[%clk 0:04:57.3]} 1... d6 {[%clk 0:04:57.5]} 2. Nf3 {[%clk 0:04:53.8]}
2... Nf6 {[%clk 0:04:56.3]} 3. Bd3 {[%clk 0:04:46.6]} 3... e5 {[%clk 0:04:51.9]}
4. c3 {[%clk 0:04:27.3]} 4... Bg4 {[%clk 0:04:49.6]} 5. h3 {[%clk 0:04:19.5]}
5... Bh5 {[%clk 0:04:47.1]} 6. O-O {[%clk 0:04:14.5]} 6... Be7 {[%clk
0:04:40.5]} 7. g4 {[%clk 0:04:12.3]} 7... Bg6 {[%clk 0:04:38.9]} 8. Bc2 {[%clk
0:04:10.1]} 8... Bxe4 {[%clk 0:04:33.3]} 9. Bxe4 {[%clk 0:04:08]} 9... Nxe4
{[%clk 0:04:32.5]} 10. Re1 {[%clk 0:04:04.8]} 10... Nc5 {[%clk 0:04:23.2]} 11.
d4 {[%clk 0:04:03.1]} 11... Ncd7 {[%clk 0:04:18.5]} 12. dxe5 {[%clk 0:04:00.7]}
12... dxe5 {[%clk 0:04:09.4]} 13. Nxe5 {[%clk 0:03:59.2]} 13... O-O {[%clk
0:04:03.4]} 14. Nxd7 {[%clk 0:03:49.9]} 14... Nxd7 {[%clk 0:03:58.3]} 15. b3
{[%clk 0:03:24.7]} 15... Bf6 {[%clk 0:03:52.5]} 16. Bb2 {[%clk 0:03:16.8]} 16...
c6 {[%clk 0:03:48.8]} 17. Na3 {[%clk 0:03:13.1]} 17... Qc7 {[%clk 0:03:46.1]}
18. Rb1 {[%clk 0:03:08.9]} 18... Rad8 {[%clk 0:03:38.6]} 19. c4 {[%clk
0:02:53.7]} 19... Bxb2 {[%clk 0:03:23.2]} 20. Rxb2 {[%clk 0:02:40.5]} 20... Nc5
{[%clk 0:03:19.3]} 21. Rd2 {[%clk 0:02:28.1]} 21... Rxd2 {[%clk 0:03:15.9]} 22.
Qxd2 {[%clk 0:02:25.3]} 22... Rd8 {[%clk 0:03:13]} 23. Qg5 {[%clk 0:02:21.5]}
23... Ne6 {[%clk 0:03:02.2]} 24. Qf5 {[%clk 0:02:07]} 24... Rd2 {[%clk 0:02:42]}
25. Nc2 {[%clk 0:01:42]} 25... Qd6 {[%clk 0:02:26.3]} 26. Nb4 {[%clk 0:01:06.4]}
26... Qxb4 {[%clk 0:02:18.3]} 27. Rxe6 {[%clk 0:00:56.5]} 27... fxe6 {[%clk
0:02:00.7]} 28. Qxe6+ {[%clk 0:00:54.3]} 28... Kf8 {[%clk 0:01:55.9]} 29. Qf5+
{[%clk 0:00:38.6]} 29... Ke8 {[%clk 0:01:46.7]} 30. Qxh7 {[%clk 0:00:20.7]}
30... Qe7 {[%clk 0:01:27]} 31. Qg8+ {[%clk 0:00:18.6]} 31... Kd7 {[%clk
0:01:23.9]} 32. Qh7 {[%clk 0:00:12.6]} 32... Qe1+ {[%clk 0:01:08.8]} 33. Kg2
{[%clk 0:00:09.6]} 33... Qxf2+ {[%clk 0:01:07.2]} 34. Kh1 {[%clk 0:00:05]} 34...
Qe1# {[%clk 0:01:05.3]} 0-1

[Event "Live Chess"]
[Site "Chess.com"]
[Date "2023.05.21"]
[Round "-"]
[White "EPotapov05"]
[Black "friarnator"]
[Result "0-1"]
[WhiteElo "1388"]
[BlackElo "1995"]
[TimeControl "300"]
[EndTime "1:11:46 PDT"]
[Termination "friarnator won by resignation"]

1. d4 {[%clk 0:04:54.1]} 1... Nf6 {[%clk 0:04:59.9]} 2. c4 {[%clk 0:04:53.2]}
2... e5 {[%clk 0:04:59.3]} 3. dxe5 {[%clk 0:04:50.5]} 3... Ng4 {[%clk
0:04:58.8]} 4. Bf4 {[%clk 0:04:48.3]} 4... Nc6 {[%clk 0:04:58.1]} 5. Nf3 {[%clk
0:04:45.7]} 5... Bb4+ {[%clk 0:04:57.2]} 6. Nbd2 {[%clk 0:04:44]} 6... Qe7
{[%clk 0:04:56.6]} 7. e3 {[%clk 0:04:40.9]} 7... Ngxe5 {[%clk 0:04:55.5]} 8.
Nxe5 {[%clk 0:04:40.8]} 8... Nxe5 {[%clk 0:04:55]} 9. Be2 {[%clk 0:04:36.7]}
9... d6 {[%clk 0:04:53.7]} 10. O-O {[%clk 0:04:35.5]} 10... Bxd2 {[%clk
0:04:53.2]} 11. Qxd2 {[%clk 0:04:34.9]} 11... O-O {[%clk 0:04:53.1]} 12. Rac1
{[%clk 0:04:30.4]} 12... f6 {[%clk 0:04:48.3]} 13. b4 {[%clk 0:04:28.9]} 13...
Be6 {[%clk 0:04:47.4]} 14. c5 {[%clk 0:04:24.4]} 14... d5 {[%clk 0:04:46]} 15.
a3 {[%clk 0:04:17.3]} 15... c6 {[%clk 0:04:45.1]} 16. Rfd1 {[%clk 0:04:16.1]}
16... g5 {[%clk 0:04:40.9]} 17. Bg3 {[%clk 0:04:14.2]} 17... Ng6 {[%clk
0:04:40.3]} 18. Bd6 {[%clk 0:04:10.3]} 18... Qf7 {[%clk 0:04:39]} 19. Bxf8
{[%clk 0:04:09.1]} 19... Rxf8 {[%clk 0:04:38.9]} 20. Bh5 {[%clk 0:04:03.7]}
20... Qe7 {[%clk 0:04:34.4]} 21. Bxg6 {[%clk 0:04:00.1]} 21... hxg6 {[%clk
0:04:34.3]} 22. Re1 {[%clk 0:03:46.7]} 22... f5 {[%clk 0:04:22.6]} 23. Qd4
{[%clk 0:03:44.1]} 23... Kf7 {[%clk 0:04:19.1]} 24. f4 {[%clk 0:03:42]} 24... g4
{[%clk 0:04:17.7]} 25. g3 {[%clk 0:03:36.9]} 25... Rg8 {[%clk 0:04:15.7]} 26.
Qe5 {[%clk 0:03:31.3]} 26... Qf6 {[%clk 0:04:10.6]} 27. Qxf6+ {[%clk 0:03:30.1]}
27... Kxf6 {[%clk 0:04:10.5]} 28. Rcd1 {[%clk 0:03:24.1]} 28... Bf7 {[%clk
0:04:08.9]} 29. Rd4 {[%clk 0:03:21.6]} 29... Re8 {[%clk 0:04:08.2]} 30. Kf2
{[%clk 0:03:15.9]} 30... Rh8 {[%clk 0:04:05.9]} 31. Rh1 {[%clk 0:03:13.4]} 31...
Be6 {[%clk 0:04:02.8]} 32. Kg2 {[%clk 0:03:12.3]} 32... Rh3 {[%clk 0:04:01.2]}
33. a4 {[%clk 0:03:05.2]} 33... a6 {[%clk 0:04:00.1]} 34. Rb1 {[%clk 0:03:02.1]}
34... Bd7 {[%clk 0:03:55.6]} 35. b5 {[%clk 0:02:58.8]} 35... cxb5 {[%clk
0:03:51.5]} 36. axb5 {[%clk 0:02:57.7]} 36... Bxb5 {[%clk 0:03:50.4]} 37. Rxd5
{[%clk 0:02:56.1]} 37... Bc6 {[%clk 0:03:49.6]} 38. Rd1 {[%clk 0:02:50.3]} 38...
Rh7 {[%clk 0:03:44.1]} 39. Kg1 {[%clk 0:02:49.5]} 39... Bxd5 {[%clk 0:03:42.5]}
40. Rxd5 {[%clk 0:02:49.2]} 40... Rc7 {[%clk 0:03:40.4]} 41. Rd6+ {[%clk
0:02:37.9]} 41... Ke7 {[%clk 0:03:34.8]} 42. Rb6 {[%clk 0:02:31.5]} 42... a5
{[%clk 0:03:30.2]} 43. c6 {[%clk 0:02:26]} 43... bxc6 {[%clk 0:03:19.8]} 44. Ra6
{[%clk 0:02:23.6]} 44... c5 {[%clk 0:03:19.1]} 45. Rxa5 {[%clk 0:02:22.2]} 45...
c4 {[%clk 0:03:18.6]} 46. Ra2 {[%clk 0:02:20.7]} 46... c3 {[%clk 0:03:17.7]} 47.
Rc2 {[%clk 0:02:20.3]} 47... Kd6 {[%clk 0:03:17.6]} 48. Kf2 {[%clk 0:02:19.6]}
48... Kd5 {[%clk 0:03:17.1]} 49. Ke2 {[%clk 0:02:16.4]} 49... Kc4 {[%clk
0:03:16.1]} 50. Kd1 {[%clk 0:02:11.5]} 50... Rd7+ {[%clk 0:03:10.9]} 51. Kc1
{[%clk 0:02:10.8]} 51... Ra7 {[%clk 0:03:08.7]} 52. Kd1 {[%clk 0:02:06]} 52...
Ra1+ {[%clk 0:03:05.7]} 53. Ke2 {[%clk 0:02:04.8]} 53... Kb3 {[%clk 0:03:03.1]}
0-1

[Event "Live Chess"]
[Site "Chess.com"]
[Date "2023.05.21"]
[Round "-"]
[White "BritishIsles"]
[Black "defenderalist"]
[Result "1-0"]
[WhiteElo "2414"]
[BlackElo "1639"]
[TimeControl "300"]
[EndTime "1:12:03 PDT"]
[Termination "BritishIsles won by resignation"]

1. d4 {[%clk 0:04:57.5]} 1... e6 {[%clk 0:04:58.5]} 2. c4 {[%clk 0:04:56.1]}
2... Nf6 {[%clk 0:04:57]} 3. Nc3 {[%clk 0:04:54.9]} 3... d5 {[%clk 0:04:55.3]}
4. Bg5 {[%clk 0:04:52.9]} 4... Be7 {[%clk 0:04:54.1]} 5. e3 {[%clk 0:04:51.1]}
5... h6 {[%clk 0:04:51.5]} 6. Bxf6 {[%clk 0:04:49.4]} 6... Bxf6 {[%clk
0:04:50.5]} 7. Nf3 {[%clk 0:04:49.2]} 7... dxc4 {[%clk 0:04:47.6]} 8. Bxc4
{[%clk 0:04:47.7]} 8... O-O {[%clk 0:04:46.2]} 9. Qd2 {[%clk 0:04:42.3]} 9... b6
{[%clk 0:04:45]} 10. O-O-O {[%clk 0:04:39.2]} 10... Bb7 {[%clk 0:04:44.3]} 11.
h4 {[%clk 0:04:27.5]} 11... a5 {[%clk 0:04:43]} 12. Rhg1 {[%clk 0:04:25.7]}
12... Nd7 {[%clk 0:04:30]} 13. e4 {[%clk 0:04:17.7]} 13... c5 {[%clk 0:04:25.9]}
14. d5 {[%clk 0:04:10.1]} 14... Bxc3 {[%clk 0:04:21.4]} 15. Qxc3 {[%clk
0:04:07.9]} 15... exd5 {[%clk 0:04:19.8]} 16. Bxd5 {[%clk 0:04:05.5]} 16... Qc7
{[%clk 0:04:12.8]} 17. g3 {[%clk 0:03:42.7]} 17... Nf6 {[%clk 0:04:09.8]} 18.
Rge1 {[%clk 0:03:35.4]} 18... Rad8 {[%clk 0:03:59.8]} 19. Bxb7 {[%clk
0:03:28.2]} 19... Qxb7 {[%clk 0:03:58.6]} 20. e5 {[%clk 0:03:27.3]} 20... Rxd1+
{[%clk 0:03:55.7]} 21. Rxd1 {[%clk 0:03:24]} 21... Ne4 {[%clk 0:03:50.6]} 22.
Qe3 {[%clk 0:03:22.5]} 22... c4 {[%clk 0:03:41.4]} 23. Rd4 {[%clk 0:03:13]}
23... f5 {[%clk 0:03:22.6]} 24. Rxc4 {[%clk 0:03:06.2]} 24... b5 {[%clk
0:03:17]} 25. Rc2 {[%clk 0:03:01.7]} 25... b4 {[%clk 0:03:10.2]} 26. Nd4 {[%clk
0:02:52.6]} 26... a4 {[%clk 0:03:02.1]} 27. Qd3 {[%clk 0:02:24.2]} 27... Nxf2
{[%clk 0:02:48.8]} 28. Rxf2 {[%clk 0:02:20.7]} 28... b3 {[%clk 0:02:42.7]} 29.
axb3 {[%clk 0:02:17.5]} 29... axb3 {[%clk 0:02:38.5]} 30. Qxb3+ {[%clk
0:02:16.3]} 1-0

[Event "Live Chess"]
[Site "Chess.com"]
[Date "2023.05.21"]
[Round "-"]
[White "Delacorta"]
[Black "Crowded_House"]
[Result "1-0"]
[WhiteElo "1440"]
[BlackElo "1657"]
[TimeControl "300"]
[EndTime "1:12:08 PDT"]
[Termination "Delacorta won by resignation"]

1. d4 {[%clk 0:04:57.6]} 1... e6 {[%clk 0:04:58.7]} 2. Nf3 {[%clk 0:04:57.1]}
2... d5 {[%clk 0:04:58.1]} 3. e3 {[%clk 0:04:56.4]} 3... c5 {[%clk 0:04:55.6]}
4. Bd3 {[%clk 0:04:55.4]} 4... Nc6 {[%clk 0:04:50.9]} 5. b3 {[%clk 0:04:53.7]}
5... Qb6 {[%clk 0:04:49.2]} 6. Bb2 {[%clk 0:04:50.4]} 6... cxd4 {[%clk
0:04:45.7]} 7. exd4 {[%clk 0:04:47.1]} 7... Nf6 {[%clk 0:04:38.6]} 8. Nbd2
{[%clk 0:04:42.2]} 8... Bd7 {[%clk 0:04:28.8]} 9. Ne5 {[%clk 0:04:40.6]} 9...
Nxd4 {[%clk 0:04:05.8]} 10. O-O {[%clk 0:04:09.7]} 10... Bd6 {[%clk 0:04:02.8]}
11. Nxd7 {[%clk 0:03:58.5]} 11... Nxd7 {[%clk 0:04:00.4]} 12. Qg4 {[%clk
0:03:47.8]} 12... Nf5 {[%clk 0:03:27.7]} 13. Bxf5 {[%clk 0:03:40.3]} 13... exf5
{[%clk 0:03:25.8]} 14. Qxf5 {[%clk 0:03:30.2]} 14... Nf6 {[%clk 0:03:10.9]} 15.
Rae1+ {[%clk 0:03:23.7]} 15... Kf8 {[%clk 0:03:01.4]} 16. Bxf6 {[%clk
0:03:04.5]} 16... gxf6 {[%clk 0:02:59.7]} 17. g3 {[%clk 0:02:51]} 17... Qd4
{[%clk 0:02:48.6]} 18. Nf3 {[%clk 0:02:37.9]} 18... Qc5 {[%clk 0:02:12.1]} 19.
Qxf6 {[%clk 0:02:34.4]} 19... Rg8 {[%clk 0:02:08.4]} 20. Qh6+ {[%clk 0:02:25.1]}
20... Rg7 {[%clk 0:02:04.4]} 21. Nh4 {[%clk 0:02:04.8]} 21... Kg8 {[%clk
0:01:48.1]} 22. Nf5 {[%clk 0:01:58.2]} 22... Rg6 {[%clk 0:01:42.2]} 23. Qh3
{[%clk 0:01:43]} 23... Qc7 {[%clk 0:01:22.9]} 24. Rd1 {[%clk 0:01:36]} 24... Qc6
{[%clk 0:01:14.2]} 25. Nxd6 {[%clk 0:01:32.5]} 25... Qxd6 {[%clk 0:01:10.2]} 26.
Qh5 {[%clk 0:01:28.5]} 26... Rd8 {[%clk 0:01:06.4]} 27. Rd3 {[%clk 0:01:22.5]}
27... Rh6 {[%clk 0:01:03.1]} 28. Qd1 {[%clk 0:01:15.9]} 28... Rh5 {[%clk
0:01:01.1]} 29. Qxh5 {[%clk 0:01:13.7]} 29... Rd7 {[%clk 0:00:59.4]} 30. Rfd1
{[%clk 0:01:11.3]} 30... Qe6 {[%clk 0:00:58.5]} 31. Rxd5 {[%clk 0:01:06.8]}
31... Rxd5 {[%clk 0:00:57.5]} 32. Qxd5 {[%clk 0:01:04.8]} 32... Qe7 {[%clk
0:00:54.6]} 33. Qd8+ {[%clk 0:01:02.9]} 33... Qxd8 {[%clk 0:00:52.7]} 34. Rxd8+
{[%clk 0:01:02.8]} 1-0